fUSD/lending_fUSD_20240620
["ID","MTS","AMOUNT","RATE_DAILY","PERIOD"]
[329960356,1718869852054,-500.0,0.00013698,2]
[329960357,1718869852064,-915.34,0.00013698,2]
[329960358,1718869852074,-500.0,0.00013698,2]
[329960359,1718869852085,-152.052186,0.00013698,2]
[329960360,1718869852095,-500.0,0.00013698,2]
[329960361,1718869852105,-500.0,0.00013698,2]
[329960362,1718869852116,-5368.16,0.00013698,2]
[329960363,1718869852127,-500.0,0.00013698,2]
[329960364,1718869852136,-2272.46,0.00013698,2]
[329960365,1718869852146,-500.0,0.00013698,2]
[329960366,1718869852156,-168.226083,0.00013698,2]
[329960367,1718869852166,-500.0,0.00013698,2]
[329960368,1718869852177,-500.0,0.00013698,2]
[329960369,1718869852188,-648.09,0.00013698,2]
[329960370,1718869852198,-500.0,0.00013698,2]
[329960371,1718869852208,-657.86,0.00013698,2]
[329960372,1718869852217,-1438.21,0.00013698,2]
[329960373,1718869852227,-500.0,0.00013698,2]
[329960374,1718869852237,-4412.54,0.00013698,2]
[329960375,1718869852247,-500.0,0.00013698,2]
[329960376,1718869852258,-1451.69,0.00013698,2]
[329960377,1718869852267,-3385.23,0.00013698,2]
[329960378,1718869852277,-500.0,0.00013698,2]
[329960379,1718869852286,-966.88,0.00013698,2]
[329960380,1718869852296,-2691.42,0.00013698,2]
[329960381,1718869852305,-500.0,0.00013698,2]
[329960382,1718869852314,-4317.68,0.00013698,2]
[329960383,1718869852324,-500.0,0.00013698,2]
[329960384,1718869852333,-500.0,0.00013698,2]
[329960385,1718869852342,-596.96,0.00013698,2]
[329960386,1718869852351,-500.0,0.00013698,2]
[329960387,1718869852361,-500.0,0.00013698,2]
[329960388,1718869852370,-500.0,0.00013698,2]
[329960389,1718869852379,-500.0,0.00013698,2]
[329960390,1718869852388,-2403.97,0.00013698,2]
[329960391,1718869852398,-500.0,0.00013698,2]
[329960392,1718869852409,-2323.15,0.00013698,2]
[329960393,1718869852419,-500.0,0.00013698,2]
[329960394,1718869852429,-500.0,0.00013698,2]
[329960395,1718869852438,-6092.29038039,0.00013698,2]
[329960396,1718869852448,-500.0,0.00013698,2]
[329960397,1718869852458,-500.0,0.00013698,2]
[329960398,1718869852467,-2409.39,0.00013698,2]
[329960399,1718869852476,-1185.45,0.00013698,2]
[329960400,1718869852487,-783.6,0.00013698,2]
[329960401,1718869852500,-509.04,0.00013698,2]
[329960402,1718869852510,-2028.73,0.00013698,2]
[329960403,1718869852519,-500.0,0.00013698,2]
[329960404,1718869852529,-500.0,0.00013698,2]
[329960405,1718869852539,-1131.84,0.00013698,2]
[329960406,1718869852548,-502.76,0.00013698,2]
[329960407,1718869852557,-1684.67,0.00013698,2]
[329960408,1718869852567,-500.0,0.00013698,2]
[329960409,1718869852579,-1539.86,0.00013698,2]
[329960410,1718869852589,-500.0,0.00013698,2]
[329960411,1718869852599,-500.0,0.00013698,2]
[329960412,1718869852608,-500.0,0.00013698,2]
[329960413,1718869852617,-5154.68,0.00013698,2]
[329960414,1718869852627,-508.6,0.00013698,2]
[329960415,1718869852636,-1334.31,0.00013698,2]
[329960416,1718869852645,-2844.62,0.00013698,2]
[329960417,1718869852654,-500.0,0.00013698,2]
[329960418,1718869852664,-919.76,0.00013698,2]
[329960419,1718869852673,-500.0,0.00013698,2]
[329960420,1718869852683,-910.65,0.00013698,2]
[329960421,1718869852692,-1833.7,0.00013698,2]
[329960422,1718869852701,-528.18,0.00013698,2]
[329960423,1718869852710,-1408.04,0.00013698,2]
[329960424,1718869852720,-5991.21,0.00013698,2]
[329960425,1718869852729,-500.0,0.00013698,2]
[329960426,1718869852739,-5639.99,0.00013698,2]
[329960427,1718869852749,-500.0,0.00013698,2]
[329960428,1718869852758,-500.0,0.00013698,2]
[329960429,1718869852768,-500.0,0.00013698,2]
[329960430,1718869852777,-500.0,0.00013698,2]
[329960431,1718869852786,-500.0,0.00013698,2]
[329960432,1718869852796,-500.0,0.00013698,2]
[329960433,1718869852805,-500.0,0.00013698,2]
[329960434,1718869852814,-5801.77,0.00013698,2]
[329960435,1718869852824,-500.0,0.00013698,2]
[329960436,1718869852833,-602.77,0.00013698,2]
[329960437,1718869852843,-151.0,0.00013698,2]
[329960438,1718869852852,-597.01,0.00013698,2]
[329960439,1718869852861,-4092.71,0.00013698,2]
[329960440,1718869852871,-151.0,0.00013698,2]
[329960441,1718869852880,-500.0,0.00013698,2]
[329960442,1718869852890,-571.63,0.00013698,2]
[329960443,1718869852900,-631.13,0.00013699,2]
[329960444,1718869852909,-250.0,0.00013699,2]
[329960445,1718869852919,-151.0,0.00013699,2]
[329960446,1718869852928,-463.55,0.00013699,2]
[329960447,1718869852938,-200.0,0.00013699,2]
[329960448,1718869852947,-1000.0,0.00013763,2]
[329960449,1718869852957,-3064.42500968,0.0001379,2]
[329960450,1718869852967,-3064.42500963,0.0001379,2]
[329960451,1718869852977,-151.0,0.0001379,2]
[329960452,1718869852986,-151.0,0.0001379,2]
[329960453,1718869852997,-823.0,0.00013793,2]
[329960454,1718869853006,-1556.3705869,0.00013799,2]
[329960455,1718869853017,-1556.37058682,0.00013799,2]
[329960456,1718869853026,-1556.37058682,0.00013799,2]
[329960457,1718869853037,-1556.37058682,0.00013799,2]
[329960458,1718869853047,-1556.37058682,0.00013799,2]
[329960459,1718869853057,-1556.37058682,0.00013799,2]
[329960460,1718869853068,-1556.37058682,0.00013799,2]
[329960461,1718869853077,-3064.42500963,0.00013816,2]
[329960462,1718869853087,-383.3117566,0.00013821,2]
[329960463,1718869853097,-810.0,0.00013828,2]
[329960464,1718869853106,-442.0,0.00013828,2]
[329960465,1718869853116,-4263.958,0.00013828,2]
[329960466,1718869853126,-5774.0,0.00013828,2]
[329960467,1718869853136,-1195.0,0.00013828,2]
[329960468,1718869853145,-1659.0,0.00013828,2]
[329960469,1718869853155,-200.0,0.00013859,2]
[329960470,1718869853164,-1000.0,0.00013859,2]
[329960471,1718869853173,-200.0,0.00013859,2]
[329960472,1718869853183,-1666.00874892,0.00013868,2]
[329960473,1718869853192,-151.0,0.00013869,2]
[329960474,1718869853201,-218.184859,0.00013869,2]
[329960475,1718869853211,-152.62397,0.00013869,2]
[329960476,1718869853220,-151.0,0.00013869,2]
[329960477,1718869853229,-151.36,0.00013869,2]
[329960478,1718869853239,-679.0,0.00013871,2]
[329960479,1718869853248,-280.327542,0.00013872,2]
[329960480,1718869853258,-151.0,0.00013872,2]
[329960481,1718869853267,-761.55353058,0.00013872,2]
[329960482,1718869853278,-4706.67916134,0.00013872,2]
[329960483,1718869853287,-534.4971,0.00013872,2]
[329960484,1718869853298,-1556.37058682,0.00013873,2]
[329960485,1718869853308,-7576.75746341,0.00013895,2]
[329960486,1718869853318,-151.0,0.00013895,2]
[329960487,1718869853328,-156.607909,0.00013895,2]
[329960488,1718869853340,-2243.81837952,0.000139,2]
[329960489,1718869853350,-10000.0,0.000139,2]
[329960490,1718869853361,-250000.0,0.000139,2]
[329960491,1718869853371,-151.0,0.000139,2]
[329960492,1718869853381,-151.0,0.000139,2]
[329960493,1718869853390,-209.863805,0.000139,2]
[329960494,1718869853400,-151.0,0.000139,2]
[329960495,1718869853410,-156.608186,0.000139,2]
[329960496,1718869853420,-151.0,0.000139,2]
[329960497,1718869853429,-151.0,0.000139,2]
[329960498,1718869853439,-151.0,0.000139,2]
[329960499,1718869853449,-151.0,0.000139,2]
[329960500,1718869853460,-151.0,0.000139,2]
[329960501,1718869853471,-151.0,0.000139,2]
[329960502,1718869853480,-221.920192,0.000139,2]
[329960503,1718869853491,-166.118662,0.000139,2]
[329960504,1718869853504,-151.0,0.000139,2]
[329960505,1718869853517,-716.50997,0.000139,2]
[329960506,1718869853528,-151.0,0.000139,2]
[329960507,1718869853539,-151.0,0.000139,2]
[329960508,1718869853548,-716.50997,0.000139,2]
[329960509,1718869853558,-151.0,0.000139,2]
[329960510,1718869853569,-165.733995,0.000139,2]
[329960511,1718869853581,-151.0,0.000139,2]
[329960512,1718869853592,-157.96875218,0.00013936,2]
[329960513,1718869853602,-2078.54556027,0.00013936,2]
[329960514,1718869853612,-151.0,0.00013961,2]
[329960515,1718869853622,-151.0,0.00013961,2]
[329960516,1718869853635,-151.0,0.00013961,2]
[329960517,1718869853758,-1117.4505709,0.00013961,2]
[329960518,1718869853772,-9500.2625692,0.00013961,2]
[329960519,1718869853781,-39630.314612,0.00013961,2]
[329960520,1718869853791,-337.7900133,0.00013961,2]
[329960521,1718869853801,-3202.83,0.00013968,2]
[329960522,1718869853811,-3064.42500963,0.00013971,2]
[329960523,1718869853820,-478.42763084,0.00013971,2]
[329960524,1718869853830,-3202.83,0.00013971,2]
[329960525,1718869853840,-3202.83,0.00013971,2]
[329960526,1718869853850,-3202.83,0.00013971,2]
[329960527,1718869853859,-3202.83,0.00013971,2]
[329960528,1718869853869,-2100.0,0.00013972,2]
[329960529,1718869853879,-200.0,0.00013972,2]
[329960530,1718869853888,-152.404049,0.00013972,2]
[329960531,1718869853898,-500.0,0.00013972,2]
[329960532,1718869853908,-500.0,0.00013972,2]
[329960533,1718869853918,-500.0,0.00013972,2]
[329960534,1718869853927,-500.0,0.00013972,2]
[329960535,1718869853937,-500.0,0.00013972,2]
[329960536,1718869853946,-500.0,0.00013972,2]
[329960537,1718869853956,-500.0,0.00013972,2]
[329960538,1718869853965,-500.0,0.00013972,2]
[329960539,1718869853975,-500.0,0.00013972,2]
[329960540,1718869853985,-500.0,0.00013972,2]
[329960541,1718869853996,-500.0,0.00013972,2]
[329960542,1718869854005,-190.68,0.00013972,2]
[329960543,1718869854016,-500.0,0.00013972,2]
[329960544,1718869854026,-151.0,0.00013972,2]
[329960545,1718869854037,-151.528276,0.00013972,2]
[329960546,1718869854048,-500.0,0.00013972,2]
[329960547,1718869854058,-500.0,0.00013972,2]
[329960548,1718869854068,-151.0,0.00013972,2]
[329960549,1718869854078,-500.0,0.00013972,2]
[329960550,1718869854088,-290.402344,0.00013972,2]
[329960551,1718869854099,-500.0,0.00013972,2]
[329960552,1718869854109,-500.0,0.00013972,2]
[329960553,1718869854120,-500.0,0.00013972,2]
[329960554,1718869854130,-500.0,0.00013972,2]
[329960555,1718869854140,-500.0,0.00013972,2]
[329960556,1718869854151,-500.0,0.00013972,2]
[329960557,1718869854162,-500.0,0.00013972,2]
[329960558,1718869854171,-500.0,0.00013972,2]
[329960559,1718869854182,-500.0,0.00013972,2]
[329960560,1718869854192,-500.0,0.00013972,2]
[329960561,1718869854202,-151.0,0.00013972,2]
[329960562,1718869854213,-151.0,0.00013972,2]
[329960563,1718869854223,-151.0,0.00013972,2]
[329960564,1718869854235,-151.0,0.00013972,2]
[329960565,1718869854245,-151.0,0.00013972,2]
[329960566,1718869854254,-151.0,0.00013972,2]
[329960567,1718869854264,-151.0,0.00013972,2]
[329960568,1718869854274,-500.0,0.00013972,2]
[329960569,1718869854284,-151.0,0.00013972,2]
[329960570,1718869854294,-500.0,0.00013972,2]
[329960571,1718869854303,-518.54,0.00013972,2]
[329960572,1718869854313,-500.0,0.00013972,2]
[329960573,1718869854322,-556.5,0.00013972,2]
[329960574,1718869854332,-500.0,0.00013972,2]
[329960575,1718869854342,-500.0,0.00013972,2]
[329960576,1718869854351,-500.0,0.00013972,2]
[329960577,1718869854361,-156.722354,0.00013972,2]
[329960578,1718869854370,-500.0,0.00013972,2]
[329960579,1718869854380,-158.713081,0.00013972,2]
[329960580,1718869854390,-500.0,0.00013972,2]
[329960581,1718869854399,-152.88121,0.00013972,2]
[329960582,1718869854409,-500.0,0.00013972,2]
[329960583,1718869854419,-500.0,0.00013972,2]
[329960584,1718869854429,-159.467514,0.00013972,2]
[329960585,1718869854438,-500.0,0.00013972,2]
[329960586,1718869854448,-500.0,0.00013972,2]
[329960587,1718869854459,-574.75,0.00013972,2]
[329960588,1718869854469,-500.0,0.00013972,2]
[329960589,1718869854479,-500.0,0.00013972,2]
[329960590,1718869854493,-500.0,0.00013972,2]
[329960591,1718869854505,-500.0,0.00013972,2]
[329960592,1718869854515,-500.0,0.00013972,2]
[329960593,1718869854526,-500.0,0.00013972,2]
[329960594,1718869854537,-500.0,0.00013972,2]
[329960595,1718869854547,-2000.0,0.00013972,2]
[329960596,1718869854557,-151.0,0.00013972,2]
[329960597,1718869854566,-262.920877,0.00013972,2]
[329960598,1718869854578,-200.0,0.00013972,2]
[329960599,1718869854589,-155.296556,0.00013972,2]
[329960600,1718869854598,-500.0,0.00013972,2]
[329960601,1718869854609,-500.0,0.00013972,2]
[329960602,1718869854619,-152.885269,0.00013972,2]
[329960603,1718869854630,-510.85,0.00013972,2]
[329960604,1718869854640,-500.0,0.00013972,2]
[329960605,1718869854649,-500.0,0.00013972,2]
[329960606,1718869854660,-500.0,0.00013972,2]
[329960607,1718869854669,-153.709144,0.00013972,2]
[329960608,1718869854679,-500.0,0.00013972,2]
[329960609,1718869854689,-500.0,0.00013972,2]
[329960610,1718869854699,-500.0,0.00013972,2]
[329960611,1718869854708,-672.54,0.00013972,2]
[329960612,1718869854719,-500.0,0.00013972,2]
[329960613,1718869854728,-500.0,0.00013972,2]
[329960614,1718869854740,-699.04,0.00013972,2]
[329960615,1718869854750,-653.95,0.00013972,2]
[329960616,1718869854761,-500.0,0.00013972,2]
[329960617,1718869854772,-500.0,0.00013972,2]
[329960618,1718869854782,-919.06,0.00013972,2]
[329960619,1718869854792,-621.64,0.00013972,2]
[329960620,1718869854802,-500.0,0.00013972,2]
[329960621,1718869854812,-500.0,0.00013972,2]
[329960622,1718869854823,-821.45,0.00013972,2]
[329960623,1718869854833,-617.2,0.00013972,2]
[329960624,1718869854843,-769.34,0.00013972,2]
[329960625,1718869854852,-689.91,0.00013972,2]
[329960626,1718869854862,-500.0,0.00013972,2]
[329960627,1718869854872,-500.0,0.00013972,2]
[329960628,1718869854882,-500.0,0.00013972,2]
[329960629,1718869854892,-584.42,0.00013972,2]
[329960630,1718869854903,-411.11,0.00013972,2]
[329960631,1718869854913,-732.92,0.00013972,2]
[329960632,1718869854924,-301.116906,0.00013972,2]
[329960633,1718869854934,-1023.16,0.00013972,2]
[329960634,1718869854944,-500.0,0.00013972,2]
[329960635,1718869854955,-500.0,0.00013972,2]
[329960636,1718869854965,-500.0,0.00013972,2]
[329960637,1718869854975,-919.35,0.00013972,2]
[329960638,1718869854986,-151.0,0.00013972,2]
[329960639,1718869854997,-151.0,0.00013972,2]
[329960640,1718869855008,-151.0,0.00013972,2]
[329960641,1718869855019,-526.18,0.00013972,2]
[329960642,1718869855029,-500.0,0.00013972,2]
[329960643,1718869855039,-600.49767951,0.00013972,2]
[329960644,1718869855049,-993.62,0.00013972,2]
[329960645,1718869855060,-500.0,0.00013972,2]
[329960646,1718869855070,-834.5,0.00013972,2]
[329960647,1718869855081,-500.0,0.00013972,2]
[329960648,1718869855091,-500.0,0.00013972,2]
[329960649,1718869855102,-500.0,0.00013972,2]
[329960650,1718869855113,-500.0,0.00013972,2]
[329960651,1718869855123,-671.94,0.00013972,2]
[329960652,1718869855133,-500.0,0.00013972,2]
[329960653,1718869855143,-547.76,0.00013972,2]
[329960654,1718869855154,-617.35,0.00013972,2]
[329960655,1718869855165,-239.10267039,0.00013972,2]
[329960656,1718869855176,-500.0,0.00013972,2]
[329960657,1718869855186,-902.43,0.00013972,2]
[329960658,1718869855197,-500.0,0.00013972,2]
[329960659,1718869855207,-500.0,0.00013972,2]
[329960660,1718869855218,-500.0,0.00013972,2]
[329960661,1718869855229,-537.53,0.00013972,2]
[329960662,1718869855240,-544.92,0.00013972,2]
[329960663,1718869855251,-500.0,0.00013972,2]
[329960664,1718869855262,-714.94,0.00013972,2]
[329960665,1718869855272,-500.0,0.00013972,2]
[329960666,1718869855283,-500.0,0.00013972,2]
[329960667,1718869855293,-500.0,0.00013972,2]
[329960668,1718869855303,-745.5,0.00013972,2]
[329960669,1718869855313,-500.0,0.00013972,2]
[329960670,1718869855323,-500.0,0.00013972,2]
[329960671,1718869855333,-504.635044,0.00013972,2]
[329960672,1718869855342,-500.0,0.00013972,2]
[329960673,1718869855352,-608.47,0.00013972,2]
[329960674,1718869855362,-500.0,0.00013972,2]
[329960675,1718869855372,-151.0,0.00013972,2]
[329960676,1718869855383,-151.0,0.00013972,2]
[329960677,1718869855392,-500.0,0.00013972,2]
[329960678,1718869855403,-254.921604,0.00013972,2]
[329960679,1718869855413,-500.0,0.00013972,2]
[329960680,1718869855423,-521.49,0.00013972,2]
[329960681,1718869855434,-975.05,0.00013972,2]
[329960682,1718869855444,-569.39,0.00013972,2]
[329960683,1718869855454,-191.76,0.00013972,2]
[329960684,1718869855464,-530.88,0.00013972,2]
[329960685,1718869855474,-500.0,0.00013972,2]
[329960686,1718869855484,-759.16,0.00013972,2]
[329960687,1718869855503,-500.0,0.00013972,2]
[329960688,1718869855516,-500.0,0.00013972,2]
[329960689,1718869855526,-500.0,0.00013972,2]
[329960690,1718869855539,-1243.55,0.00013972,2]
[329960691,1718869855549,-636.92,0.00013972,2]
[329960692,1718869855559,-1030.7,0.00013972,2]
[329960693,1718869855569,-534.45,0.00013972,2]
[329960694,1718869855585,-500.0,0.00013972,2]
[329960695,1718869855596,-500.0,0.00013972,2]
[329960696,1718869855607,-677.63,0.00013972,2]
[329960697,1718869855617,-636.42,0.00013972,2]
[329960698,1718869855627,-545.22,0.00013972,2]
[329960699,1718869855637,-618.57,0.00013972,2]
[329960700,1718869855647,-500.0,0.00013972,2]
[329960701,1718869855657,-500.0,0.00013972,2]
[329960702,1718869855667,-500.0,0.00013972,2]
[329960703,1718869855678,-500.0,0.00013972,2]
[329960704,1718869855688,-511.04,0.00013972,2]
[329960705,1718869855698,-735.62,0.00013972,2]
[329960706,1718869855708,-500.0,0.00013972,2]
[329960707,1718869855718,-500.0,0.00013972,2]
[329960708,1718869855728,-500.0,0.00013972,2]
[329960709,1718869855739,-500.0,0.00013972,2]
[329960710,1718869855750,-500.0,0.00013972,2]
[329960711,1718869855760,-653.54,0.00013972,2]
[329960712,1718869855770,-500.0,0.00013972,2]
[329960713,1718869855780,-500.0,0.00013972,2]
[329960714,1718869855790,-500.0,0.00013972,2]
[329960715,1718869855800,-500.0,0.00013972,2]
[329960716,1718869855810,-500.0,0.00013972,2]
[329960717,1718869855820,-943.45,0.00013972,2]
[329960718,1718869855830,-766.11,0.00013972,2]
[329960719,1718869855841,-500.0,0.00013972,2]
[329960720,1718869855852,-529.03,0.00013972,2]
[329960721,1718869855863,-812.19,0.00013972,2]
[329960722,1718869855873,-735.19,0.00013972,2]
[329960723,1718869855883,-753.37,0.00013972,2]
[329960724,1718869855893,-500.0,0.00013972,2]
[329960725,1718869855903,-592.72,0.00013972,2]
[329960726,1718869855914,-151.0,0.00013972,2]
[329960727,1718869855925,-500.0,0.00013972,2]
[329960728,1718869855936,-151.0,0.00013972,2]
[329960729,1718869855947,-151.0,0.00013972,2]
[329960730,1718869855956,-151.0,0.00013972,2]
[329960731,1718869855967,-500.0,0.00013972,2]
[329960732,1718869855978,-259.65,0.00013972,2]
[329960733,1718869855987,-500.0,0.00013972,2]
[329960734,1718869856276,-525.52,0.00013972,2]
[329960735,1718869856287,-500.0,0.00013972,2]
[329960736,1718869856297,-685.83,0.00013972,2]
[329960737,1718869856307,-518.14,0.00013972,2]
[329960738,1718869856318,-2000.0,0.00013972,2]
[329960739,1718869856330,-200.0,0.00013972,2]
[329960740,1718869856341,-500.0,0.00013972,2]
[329960741,1718869856352,-500.0,0.00013972,2]
[329960742,1718869856364,-500.0,0.00013972,2]
[329960743,1718869856374,-500.0,0.00013972,2]
[329960744,1718869856384,-859.62,0.00013972,2]
[329960745,1718869856394,-500.0,0.00013972,2]
[329960746,1718869856404,-500.0,0.00013972,2]
[329960747,1718869856416,-500.0,0.00013972,2]
[329960748,1718869856427,-500.0,0.00013972,2]
[329960749,1718869856437,-500.0,0.00013972,2]
[329960750,1718869856448,-528.28,0.00013972,2]
[329960751,1718869856458,-618.91,0.00013972,2]
[329960752,1718869856468,-807.44,0.00013972,2]
[329960753,1718869856477,-950.0,0.00013972,2]
[329960754,1718869856488,-500.0,0.00013972,2]
[329960755,1718869856500,-802.53,0.00013972,2]
[329960756,1718869856510,-500.0,0.00013972,2]
[329960757,1718869856520,-519.52,0.00013972,2]
[329960758,1718869856531,-500.0,0.00013972,2]
[329960759,1718869856543,-151.0,0.00013972,2]
[329960760,1718869856554,-151.0,0.00013972,2]
[329960761,1718869856565,-151.0,0.00013972,2]
[329960762,1718869856578,-563.8,0.00013972,2]
[329960763,1718869856589,-151.0,0.00013972,2]
[329960764,1718869856600,-913.75,0.00013972,2]
[329960765,1718869856611,-630.58,0.00013972,2]
[329960766,1718869856622,-518.78,0.00013972,2]
[329960767,1718869856634,-414.51719788,0.00013972,2]
[329960768,1718869856645,-500.0,0.00013972,2]
[329960769,1718869856655,-500.0,0.00013972,2]
[329960770,1718869856666,-483.74852222,0.00013972,2]
[329960771,1718869856677,-500.0,0.00013972,2]
[329960772,1718869856688,-623.71,0.00013972,2]
[329960773,1718869856699,-500.0,0.00013972,2]
[329960774,1718869856710,-773.51,0.00013972,2]
[329960775,1718869856719,-500.0,0.00013972,2]
[329960776,1718869856729,-650.95,0.00013972,2]
[329960777,1718869856739,-766.75,0.00013972,2]
[329960778,1718869856748,-566.12,0.00013972,2]
[329960779,1718869856757,-500.0,0.00013972,2]
[329960780,1718869856767,-500.0,0.00013972,2]
[329960781,1718869856777,-244.99386538,0.00013972,2]
[329960782,1718869856788,-500.0,0.00013972,2]
[329960783,1718869856799,-938.33,0.00013972,2]
[329960784,1718869856809,-2326.13702,0.00013972,2]
[329960785,1718869856820,-550.19,0.00013972,2]
[329960786,1718869856831,-500.0,0.00013972,2]
[329960787,1718869856842,-500.0,0.00013972,2]
[329960788,1718869856853,-874.6,0.00013972,2]
[329960789,1718869856864,-500.0,0.00013972,2]
[329960790,1718869856874,-775.46,0.00013972,2]
[329960791,1718869856883,-2726.59,0.00013972,2]
[329960792,1718869856893,-1990.89,0.00013972,2]
[329960793,1718869856903,-500.0,0.00013972,2]
[329960794,1718869856913,-580.94,0.00013972,2]
[329960795,1718869856923,-902.13,0.00013972,2]
[329960796,1718869856932,-886.08,0.00013972,2]
[329960797,1718869856942,-500.0,0.00013972,2]
[329960798,1718869856951,-151.0,0.00013972,2]
[329960799,1718869856961,-151.0,0.00013972,2]
[329960800,1718869856971,-151.0,0.00013972,2]
[329960801,1718869856981,-640.69703111,0.00013972,2]
[329960802,1718869856992,-500.0,0.00013972,2]
[329960803,1718869857002,-1772.23,0.00013972,2]
[329960804,1718869857012,-500.0,0.00013972,2]
[329960805,1718869857021,-151.0,0.00013972,2]
[329960806,1718869857033,-151.0,0.00013972,2]
[329960807,1718869857044,-500.0,0.00013972,2]
[329960808,1718869857055,-650.32,0.00013972,2]
[329960809,1718869857069,-3732.65,0.00013972,2]
[329960810,1718869857080,-151.0,0.00013972,2]
[329960811,1718869857091,-153.312247,0.00013972,2]
[329960812,1718869857102,-1421.81,0.00013972,2]
[329960813,1718869857113,-1881.35,0.00013972,2]
[329960814,1718869857125,-500.0,0.00013972,2]
[329960815,1718869857135,-617.97,0.00013972,2]
[329960816,1718869857147,-815.35,0.00013972,2]
[329960817,1718869857158,-151.0,0.00013972,2]
[329960818,1718869857169,-500.0,0.00013972,2]
[329960819,1718869857178,-151.0,0.00013972,2]
[329960820,1718869857188,-11313.6,0.00013972,2]
[329960821,1718869857198,-500.0,0.00013972,2]
[329960822,1718869857207,-151.0,0.00013972,2]
[329960823,1718869857216,-597.34,0.00013972,2]
[329960824,1718869857226,-1079.63,0.00013972,2]
[329960825,1718869857237,-544.97,0.00013972,2]
[329960826,1718869857248,-500.0,0.00013972,2]
[329960827,1718869857259,-9688.51,0.00013972,2]
[329960828,1718869857268,-4065.05,0.00013972,2]
[329960829,1718869857278,-551.75,0.00013972,2]
[329960830,1718869857288,-500.0,0.00013972,2]
[329960831,1718869857298,-500.0,0.00013972,2]
[329960832,1718869857309,-1236.77,0.00013972,2]
[329960833,1718869857320,-2449.14,0.00013972,2]
[329960834,1718869857331,-500.0,0.00013972,2]
[329960835,1718869857342,-577.65142059,0.00013972,2]
[329960836,1718869857353,-683.53,0.00013972,2]
[329960837,1718869857364,-500.0,0.00013972,2]
[329960838,1718869857375,-4116.95,0.00013972,2]
[329960839,1718869857387,-1317.76,0.00013972,2]
[329960840,1718869857398,-559.34,0.00013972,2]
[329960841,1718869857408,-500.0,0.00013972,2]
[329960842,1718869857419,-1220.51,0.00013972,2]
[329960843,1718869857430,-500.0,0.00013972,2]
[329960844,1718869857441,-500.0,0.00013972,2]
[329960845,1718869857452,-1715.98,0.00013972,2]
[329960846,1718869857463,-24567.01,0.00013972,2]
[329960847,1718869857473,-151.0,0.00013972,2]
[329960848,1718869857482,-151.0,0.00013972,2]
[329960849,1718869857493,-151.0,0.00013972,2]
[329960850,1718869857508,-1033.58,0.00013972,2]
[329960851,1718869857518,-2674.3,0.00013972,2]
[329960852,1718869857528,-500.0,0.00013972,2]
[329960853,1718869857539,-500.0,0.00013972,2]
[329960854,1718869857549,-581.87,0.00013972,2]
[329960855,1718869857558,-151.0,0.00013972,2]